lending/lending_fUSD_20251018
["ID","MTS","AMOUNT","RATE_DAILY","PERIOD"]
[391733804,1760760632687,-153.0,0.00029821,2]
[391733805,1760760632697,-153.0,0.00029821,2]
[391733806,1760760632706,-153.0,0.00029821,2]
[391733807,1760760632716,-153.0,0.00029821,2]
[391733808,1760760632726,-153.0,0.00029821,2]
[391733809,1760760632735,-153.0,0.00029821,2]
[391733811,1760760632744,-153.0,0.00029821,2]
[391733813,1760760632753,-153.0,0.00029821,2]
[391733815,1760760632764,-153.0,0.00029821,2]
[391733816,1760760632773,-153.0,0.00029821,2]
[391733817,1760760632783,-153.0,0.00029821,2]
[391733818,1760760632792,-153.0,0.00029821,2]
[391733819,1760760632803,-153.0,0.00029821,2]
[391733821,1760760632815,-153.0,0.00029821,2]
[391733823,1760760632824,-153.0,0.00029821,2]
[391733825,1760760632833,-153.0,0.00029821,2]
[391733827,1760760632842,-153.0,0.00029821,2]
[391733828,1760760632853,-153.0,0.00029821,2]
[391733830,1760760632862,-153.0,0.00029821,2]
[391733832,1760760632871,-153.0,0.00029821,2]
[391733834,1760760632880,-153.0,0.00029821,2]
[391733836,1760760632891,-153.0,0.00029821,2]
[391733838,1760760632901,-153.0,0.00029821,2]
[391733840,1760760632910,-153.0,0.00029821,2]
[391733842,1760760632919,-153.0,0.00029821,2]
[391733844,1760760632928,-153.0,0.00029821,2]
[391733846,1760760632937,-153.0,0.00029821,2]
[391733848,1760760632946,-153.0,0.00029821,2]
[391733850,1760760632955,-153.0,0.00029821,2]
[391733852,1760760632964,-153.0,0.00029821,2]
[391733854,1760760632973,-153.0,0.00029821,2]
[391733856,1760760632982,-153.0,0.00029821,2]
[391733858,1760760632991,-153.0,0.00029821,2]
[391733860,1760760633000,-153.0,0.00029821,2]
[391733862,1760760633010,-153.0,0.00029821,2]
[391733864,1760760633019,-153.0,0.00029821,2]
[391733866,1760760633028,-153.0,0.00029821,2]
[391733868,1760760633038,-153.06,0.00029854,2]
[391733870,1760760633047,-500.0,0.000299,5]
[391733871,1760760633055,-500.0,0.00029933,5]
[391733872,1760760633064,-163.54336111,0.00029933,5]
[391733873,1760760633073,-312.02180026,0.00029933,5]
[391733874,1760760633082,-769.35185077,0.00030021,5]
[391733875,1760760633092,-150.0,0.00030368,2]
[391733876,1760760633101,-300.0,0.00030474,2]
[391733877,1760760633111,-782.28889251,0.00030481,5]
[391733878,1760760633121,-153.06,0.00031425,2]
[391733879,1760760633130,-300.0,0.00031843,2]
[391733880,1760760633139,-2546.0,0.00031944,2]
[391733881,1760760633149,-151.12578793,0.00032075,2]
[391733882,1760760633158,-10000.0,0.00032127,30]
[391733883,1760760633168,-5000.0,0.00032175,2]
[391733884,1760760633177,-7520.6702625,0.00032214,2]
[391733885,1760760633186,-2590.0,0.00032668,2]
[391733886,1760760633195,-557.0,0.00032668,2]
[391733887,1760760633204,-176.56,0.00032745,30]
[391733888,1760760633213,-666.0,0.00032898,3]
[391733889,1760760633223,-298.65,0.00033165,2]
[391733890,1760760633232,-152.0,0.00033753,3]
[391733891,1760760633242,-1000.0,0.00033825,2]
[391733892,1760760633251,-2050.0,0.00033979,2]
[391733893,1760760633261,-750.0,0.00033979,2]
[391733894,1760760633270,-1267.0,0.00033979,2]
[391733895,1760760633280,-3408.0,0.00033979,2]
[391733896,1760760633289,-605.0,0.00033979,2]
[391733897,1760760633298,-1310.0,0.00033979,2]
[391733898,1760760633307,-571.0,0.00033979,2]
[391733899,1760760633317,-1589.0,0.00033979,2]
[391733900,1760760633326,-817.0,0.00033979,2]
[391733901,1760760633335,-1097.01685404,0.00034688,2]
[391733902,1760760633344,-2546.0,0.00034944,2]
[391733903,1760760633353,-503.23186723,0.00035432,17]
[391733904,1760760633362,-507.24699481,0.00035432,17]
[391733905,1760760633371,-2590.0,0.00035668,2]
[391733906,1760760633380,-557.0,0.00035668,2]
[391733907,1760760633390,-153.0,0.00035678,2]
[391733908,1760760633403,-153.0,0.00035678,2]
[391733909,1760760633412,-153.0,0.00035678,2]
[391733910,1760760633421,-153.0,0.00035678,2]
[391733911,1760760633430,-153.0,0.00035678,2]
[391733912,1760760633439,-153.0,0.00035678,2]
[391733913,1760760633448,-153.0,0.00035678,2]
[391733914,1760760633458,-153.0,0.00035678,2]
[391733915,1760760633467,-7520.6702625,0.00035814,2]
[391733916,1760760633476,-500.0,0.00035824,120]
[391733917,1760760633485,-150.0,0.00035975,7]
[391733918,1760760633494,-150.0,0.00035975,7]
[391733919,1760760633504,-150.0,0.00035975,7]
[391733920,1760760633514,-150.0,0.00035975,7]
[391733921,1760760633523,-150.0,0.00035975,7]
[391733922,1760760633532,-150.0,0.00035975,7]
[391733923,1760760633541,-150.0,0.00035975,7]
[391733924,1760760633551,-150.0,0.00035975,7]
[391733925,1760760633560,-295.57131539,0.00035975,7]
[391733926,1760760633570,-150.0,0.00035975,7]
[391733927,1760760633579,-150.0,0.00035975,7]
[391733928,1760760633588,-150.0,0.00035975,7]
[391733929,1760760633597,-1221.8877,0.00036372,2]
[391733930,1760760633607,-4959.46533432,0.00036372,2]
[391733931,1760760633616,-306.34485894,0.00036372,2]
[391733932,1760760633625,-1618.12256928,0.00036372,2]
[391733933,1760760633635,-2467.47141009,0.00036372,2]
[391733934,1760760633644,-4120.71599534,0.00036373,8]
[391733935,1760760633654,-165.66460097,0.00036373,15]
[391733936,1760760633664,-200.0,0.00036395,2]
[391733937,1760760633674,-51363.6898113,0.00036462,3]
[391733938,1760760633713,-33641.3391297,0.00036462,3]
[391733939,1760760633723,-85807.09270837,0.00036472,2]
[391733940,1760760633734,-510.0,0.00036472,2]
[391733941,1760760633745,-2287.79649525,0.00036472,2]
[391733942,1760760633757,-1836.12719846,0.00036472,2]
[391733943,1760760633773,-749.15726767,0.00036472,2]
[391733944,1760760633784,-771.84522717,0.00036472,2]
[391733945,1760760633796,-870.90512706,0.00036472,2]
[391733951,1760760638197,-419.075,0.00032075,2]
[391733952,1760760638214,-909.94989451,0.00032075,2]
[391733953,1760760638225,-91.82810221,0.00032075,2]
[391733954,1760760638235,-3378.83750662,0.00036472,2]
[391733995,1760760640056,-925.18,0.0003635,2]
[391733996,1760760640066,-711.28122334,0.00036472,2]
[391733997,1760760640421,-29.88437718,0.00036472,2]
[391733998,1760760640433,-95673.43416888,0.00036472,2]
[391733999,1760760640442,-185101.45760827,0.00036472,2]
[391734000,1760760640452,-500.0,0.00036473,5]
[391734001,1760760640462,-200.0,0.00036473,5]
[391734002,1760760640471,-500.0,0.00036473,5]
[391734003,1760760640481,-150.0,0.00036546,7]
[391734004,1760760640490,-500.0,0.00036625,7]
[391734005,1760760640499,-150.0,0.00036642,7]
[391734006,1760760640509,-1618.12256924,0.00036653,2]
[391734007,1760760640519,-4959.4653343,0.00036742,2]
[391734008,1760760640528,-152.0,0.00036862,4]
[391734009,1760760640538,-1618.12256924,0.00036934,2]
[391734010,1760760640547,-10625.6286176,0.00036969,3]
[391734011,1760760640557,-150.0,0.00036975,7]
[391734012,1760760640566,-2050.0,0.00036979,2]
[391734013,1760760640575,-750.0,0.00036979,2]
[391734014,1760760640585,-1267.0,0.00036979,2]
[391734015,1760760640594,-3408.0,0.00036979,2]
[391734016,1760760640604,-605.0,0.00036979,2]
[391734017,1760760640613,-1293.78,0.00036979,2]
[391734018,1760760640622,-571.0,0.00036979,2]
[391734019,1760760640631,-1589.0,0.00036979,2]
[391734020,1760760640641,-817.0,0.00036979,2]
[391734021,1760760640651,-1097.01685404,0.00037,120]
[391734022,1760760640660,-1000.0,0.00037,2]
[391734023,1760760640670,-1000.0,0.00037,2]
[391734024,1760760640679,-1000.0,0.00037,2]
[391734026,1760760640689,-1000.0,0.00037021,5]
[391734027,1760760640698,-1000.0,0.00037021,5]
[391734028,1760760640707,-4959.4653343,0.00037112,2]
[391734029,1760760640717,-150.0,0.00037117,7]
[391734030,1760760640727,-400.0,0.00037158,5]
[391734031,1760760640736,-1618.12256924,0.00037215,2]
[391734032,1760760640746,-306.34485889,0.00037287,2]
[391734033,1760760640755,-150.0,0.00037308,7]
[391734034,1760760640765,-150.0,0.00037308,7]
[391734035,1760760640932,-150.0,0.00037308,7]
[391734036,1760760640945,-2751.0,0.00037367,120]
[391734037,1760760640954,-500.0,0.00037447,7]
[391734038,1760760640963,-10625.6286176,0.00037471,3]
[391734039,1760760640973,-4959.4653343,0.00037481,2]
[391734040,1760760640982,-1618.12256924,0.00037496,2]
[391734041,1760760640991,-274.60564354,0.00037568,5]
[391734042,1760760641000,-500.0,0.00037568,5]
[391734043,1760760641010,-150.0,0.00037688,7]
[391734044,1760760641021,-176.56,0.00037726,120]
[391734045,1760760641031,-21251.2572353,0.00037751,3]
[391734046,1760760641043,-34313.79833451,0.00037761,3]
[391734047,1760760641058,-1451.86120427,0.00037761,3]
[391734048,1760760641069,-5852.29938424,0.00037761,3]
[391734049,1760760641080,-251.74694072,0.00037761,3]
[391734050,1760760641092,-797.62849177,0.00037761,3]
[391734054,1760760646211,-153.0,0.00029821,2]
[391734055,1760760646220,-153.0,0.00029821,2]
[391734056,1760760646229,-153.0,0.00029821,2]
[391734057,1760760646239,-153.0,0.00029821,2]
[391734058,1760760646248,-153.0,0.00029821,2]
[391734059,1760760646257,-153.0,0.00029821,2]
[391734060,1760760646266,-153.0,0.00029821,2]
[391734061,1760760646275,-1183.0,0.00034092,2]
[391734062,1760760646284,-1420.8529967,0.00034224,2]
[391734063,1760760646293,-1183.0,0.00037092,2]
[391734064,1760760646303,-9888.9510586,0.00037761,3]
[391734065,1760760646319,-21823.11490929,0.00037761,3]
[391734066,1760760646328,-24960.32307662,0.00037761,3]
[391734067,1760760646372,-974.9999998,0.00037761,3]
[391734068,1760760646383,-12560.8328265,0.00037761,3]
[391734069,1760760646394,-910.07126,0.00037761,3]
[391734070,1760760646426,-153.0,0.00029821,2]
[391734071,1760760646436,-2070.74664,0.00037761,3]
[391734234,1760761267771,1047.788116,7.945e-05,2]
[391734423,1760761508545,43697.211884,0.00015,2]
[391734424,1760761508577,15526.50243231,0.00015,2]
[391734461,1760761677575,60844.01851126,0.00015,2]
[391734462,1760761677597,7437.46426183,0.00015,2]
[391734526,1760761832241,-249.88703449,0.000203,2]
[391734528,1760761832252,-150.0,0.000203,2]
[391734529,1760761832262,-249.88703449,0.000205,2]
[391734531,1760761832272,-249.88703449,0.000207,2]
[391734533,1760761832282,-249.88703449,0.00021,2]
[391734535,1760761832292,-475.74147678,0.00021196,2]
[391734536,1760761832301,-249.88703449,0.000212,2]
[391734538,1760761832311,-1010.61,0.00025,2]
[391734539,1760761832320,-1000.0,0.00029,2]
[391734541,1760761832329,-151.24234711,0.00029821,2]
[391734543,1760761832340,-1322.27431466,0.00030036,2]
[391734544,1760761832404,-16.72568534,0.00030036,2]
[391734545,1760761832413,-153.0,0.00030037,2]
[391734546,1760761832422,-153.0,0.00030037,2]
[391734547,1760761832431,-153.0,0.00030037,2]
[391734548,1760761832439,-153.0,0.00030037,2]
[391734549,1760761832448,-153.0,0.00030037,2]
[391734550,1760761832457,-118.27431466,0.00030037,2]
[391734551,1760761832468,-34.72568534,0.00030037,2]
[391734552,1760761832479,-153.0,0.00030037,2]
[391734553,1760761832488,-153.0,0.00030037,2]
[391734554,1760761832497,-153.0,0.00030037,2]
[391734555,1760761832506,-153.0,0.00030037,2]
[391734556,1760761832515,-153.0,0.00030037,2]
[391734557,1760761832523,-153.0,0.00030037,2]
[391734558,1760761832532,-153.0,0.00030037,2]
[391734559,1760761832541,-153.0,0.00030037,2]
[391734560,1760761832550,-153.0,0.00030037,2]
[391734561,1760761832559,-152.0,0.00031,120]
[391734562,1760761832569,-152.0,0.00031,120]
[391734563,1760761832578,-166.37,0.00032076,2]
[391734564,1760761832587,-1000.0,0.00032129,30]
[391734565,1760761832597,-152.0,0.000323,120]
[391734566,1760761832606,-544.137848,0.0003263,2]
[391734567,1760761832616,-166.66,0.00032794,30]
[391734568,1760761832625,-195.94995187,0.00032877,2]
[391734569,1760761832634,-152.0,0.000331,120]
[391734570,1760761832644,-166.66,0.00033484,30]
[391734571,1760761832653,-152.0,0.000336,120]
[391734572,1760761832663,-166.66,0.00034175,30]
[391734573,1760761832673,-523.0,0.00034193,2]
[391734575,1760761832682,-1589.0,0.00034194,2]
[391734577,1760761832691,-817.0,0.00034194,2]
[391734579,1760761832701,-181.61552567,0.00034194,38]
[391734581,1760761832710,-1159.333,0.00034194,38]
[391734583,1760761832719,-1183.0,0.00034194,2]
[391734585,1760761832729,-78.95638746,0.00034194,2]
[391734587,1760761832740,-1901.33943098,0.00034194,2]
[391734590,1760761832751,-565.70418156,0.00034194,2]
[391734592,1760761832761,-902.0,0.00034194,2]
[391734594,1760761832770,-750.0,0.00034194,2]
[391734596,1760761832779,-2280.61566209,0.00034194,2]
[391734939,1760761838286,-1127.38433791,0.00034194,2]
[391734940,1760761838296,-2050.0,0.00034194,2]
[391734941,1760761838304,-293.28303742,0.00034194,2]
[391735106,1760761840503,-303.94,0.00034194,2]
[391735148,1760761846485,-1992.77696258,0.00034194,2]
[391735149,1760761846495,-110.90844705,0.00034194,2]
[391735150,1760761846507,-446.09155295,0.00034194,2]
[391735151,1760761846517,-164.17,0.00034288,2]
[391735152,1760761846527,-191.55,0.00034352,120]
[391735153,1760761846536,-2732.11,0.00034421,2]
[391735154,1760761846545,-250.0,0.00034649,2]
[391735155,1760761846555,-1000.0,0.00034668,2]
[391735156,1760761846565,-152.0,0.000348,120]
[391735157,1760761846575,-513.36,0.00034842,2]
[391735158,1760761846584,-1019.72316123,0.00034849,120]
[391735159,1760761846593,-166.66,0.00034865,30]
[391735160,1760761846603,-1166.06523479,0.0003495,120]
[391735161,1760761846612,-152.0,0.000352,120]
[391735162,1760761846622,-166.66,0.00035298,2]
[391735163,1760761846631,-2500.0,0.000353,14]
[391735164,1760761846640,-500.0,0.00035475,5]
[391735165,1760761846650,-29.61005103,0.00035556,30]
[391735166,1760761846665,-137.04994897,0.00035556,30]
[391735167,1760761846675,-151.83198103,0.00035606,2]
[391735181,1760761939592,446.54901912,0.00032129,120]
[391735321,1760762177317,-427.9702139,0.000205,2]
[391735322,1760762177340,-427.9702139,0.000207,2]
[391735323,1760762177364,-427.9702139,0.000209,2]
[391735324,1760762177389,-427.9702139,0.000212,2]
[391735325,1760762177413,-427.9702139,0.000214,2]
[391735340,1760762381496,50000.0,0.00032153,30]
[391735341,1760762390065,50000.0,0.00032153,60]
[391735431,1760762464558,480.0,0.00027397,120]
[391735454,1760762632524,321.0,0.00027397,120]
[391735456,1760762643945,500.0,0.00026909,120]
[391735457,1760762644034,500.0,0.00024697,120]
[391735458,1760762644158,500.0,0.0002731,120]
[391735515,1760763031579,-436.02500537,0.00024463,7]
[391735516,1760763031704,-265.86992524,0.00024463,7]
[391735517,1760763031720,-12663.10506939,0.00024463,7]
[391735518,1760763031729,-500.0,0.00024932,2]
[391735519,1760763031739,-611.75850618,0.00027148,2]
[391735520,1760763031748,-1223.51701236,0.00028148,7]
[391735521,1760763031759,-153.0,0.00030003,2]
[391735522,1760763031769,-153.0,0.00030003,2]
[391735523,1760763031778,-150.72,0.00030003,2]
[391735524,1760763031787,-153.0,0.00030012,2]
[391735525,1760763031797,-153.0,0.00030012,2]
[391735526,1760763031806,-153.0,0.00030012,2]
[391735527,1760763031815,-153.0,0.00030012,2]
[391735528,1760763031825,-153.0,0.00030012,2]
[391735530,1760763031834,-153.0,0.00030012,2]
[391735532,1760763031843,-153.0,0.00030012,2]
[391735534,1760763031852,-153.0,0.00030012,2]
[391735536,1760763031862,-153.0,0.00030012,2]
[391735538,1760763031872,-153.0,0.00030012,2]
[391735540,1760763031883,-153.0,0.00030012,2]
[391735542,1760763031892,-153.0,0.00030012,2]
[391735544,1760763031901,-153.0,0.00030012,2]
[391735546,1760763031911,-153.0,0.00030012,2]
[391735548,1760763031920,-153.0,0.00030012,2]
[391735550,1760763031929,-153.0,0.00030012,2]
[391735552,1760763031938,-153.0,0.00030012,2]
[391735554,1760763031948,-153.0,0.00030012,2]
[391735556,1760763031957,-153.0,0.00030012,2]
[391735558,1760763031966,-153.0,0.00030012,2]
[391735561,1760763031975,-153.0,0.00030012,2]
[391735564,1760763031985,-153.0,0.00030012,2]
[391735567,1760763031994,-153.0,0.00030012,2]
[391735570,1760763032003,-153.0,0.00030012,2]
[391735573,1760763032013,-153.0,0.00030012,2]
[391735575,1760763032023,-153.0,0.00030012,2]
[391735577,1760763032032,-153.0,0.00030012,2]
[391735579,1760763032041,-153.0,0.00030012,2]
[391735581,1760763032051,-153.0,0.00030012,2]
[391735583,1760763032060,-153.0,0.00030012,2]
[391735585,1760763032069,-153.0,0.00030012,2]
[391735587,1760763032078,-153.0,0.00030012,2]
[391735589,1760763032087,-153.0,0.00030012,2]
[391735591,1760763032096,-153.0,0.00030012,2]
[391735593,1760763032105,-153.0,0.00030012,2]
[391735595,1760763032114,-153.0,0.00030012,2]
[391735597,1760763032123,-153.0,0.00030012,2]
[391735599,1760763032133,-153.0,0.00030012,2]
[391735601,1760763032143,-153.0,0.00030012,2]
[391735603,1760763032152,-153.0,0.00030012,2]
[391735605,1760763032163,-153.0,0.00030012,2]
[391735607,1760763032172,-153.0,0.00030012,2]
[391735609,1760763032183,-153.0,0.00030012,2]
[391735611,1760763032193,-153.0,0.00030012,2]
[391735613,1760763032202,-153.0,0.00030012,2]
[391735615,1760763032211,-153.0,0.00030012,2]
[391735617,1760763032220,-153.0,0.00030012,2]
[391735619,1760763032229,-153.0,0.00030012,2]
[391735621,1760763032239,-153.0,0.00030012,2]
[391735623,1760763032248,-153.0,0.00030012,2]
[391735625,1760763032257,-153.0,0.00030012,2]
[391735627,1760763032267,-153.0,0.00030012,2]
[391735629,1760763032276,-153.0,0.00030012,2]
[391735631,1760763032286,-153.0,0.00030012,2]
[391735633,1760763032295,-153.0,0.00030012,2]
[391735635,1760763032305,-153.0,0.00030012,2]
[391735637,1760763032314,-153.0,0.00030012,2]
[391735639,1760763032323,-153.0,0.00030012,2]
[391735641,1760763032333,-153.0,0.00030012,2]
[391735643,1760763032342,-153.0,0.00030012,2]
[391735645,1760763032352,-153.0,0.00030012,2]
[391735647,1760763032362,-153.0,0.00030012,2]
[391735649,1760763032370,-153.0,0.00030012,2]
[391735650,1760763032379,-153.0,0.00030012,2]
[391735651,1760763032389,-153.0,0.00030012,2]
[391735652,1760763032398,-153.0,0.00030012,2]
[391735653,1760763032407,-153.0,0.00030012,2]
[391735654,1760763032416,-153.0,0.00030012,2]
[391735655,1760763032426,-1000.0,0.00030928,2]
[391735656,1760763032435,-201.72,0.00030934,30]
[391735657,1760763032444,-152.0,0.00031,120]
[391735658,1760763032453,-154.0,0.00031,120]
[391735659,1760763032463,-200.0,0.00031011,2]
[391735660,1760763032472,-5000.0,0.00031302,2]
[391735661,1760763032481,-2751.0,0.00031332,120]
[391735662,1760763032491,-200.0,0.000318,11]
[391735663,1760763032499,-500.0,0.000319,11]
[391735664,1760763032509,-2744.03368196,0.00031979,2]
[391735666,1760763032518,-2880.81611751,0.00032,120]
[391735667,1760763032528,-5731.52049788,0.00032006,2]
[391735668,1760763032537,-3846.00159566,0.00032006,4]
[391735669,1760763032547,-12233.52009596,0.00032006,2]
[391735670,1760763032556,-160.77807033,0.00032006,3]
[391735671,1760763032565,-406.91945597,0.00032015,2]
[391735672,1760763032575,-927.467,0.00032047,31]
[391735673,1760763032584,-503.0663356,0.00032073,2]
[391735674,1760763032593,-503.04268844,0.00032073,5]
[391735675,1760763032602,-501.9436937,0.00032073,5]
[391735676,1760763032611,-503.0252554,0.00032073,5]
[391735677,1760763032621,-150.52,0.0003209,2]
[391735678,1760763032630,-204.84901359,0.0003209,2]
[391735679,1760763032639,-500.0,0.00032099,2]
[391735680,1760763032648,-465.76093796,0.00032099,2]
[391735681,1760763032657,-330.56659357,0.00032099,2]
[391735682,1760763032667,-500.0,0.00032099,2]
[391735683,1760763032676,-470.35249094,0.00032099,2]
[391735684,1760763032686,-188.63777297,0.00032099,2]
[391735685,1760763032695,-500.0,0.00032099,2]
[391735686,1760763032704,-500.0,0.00032099,2]
[391735687,1760763032714,-500.0,0.00032099,2]
[391735688,1760763032723,-500.0,0.00032099,2]
[391735689,1760763032732,-500.0,0.00032099,2]
[391735690,1760763032741,-500.0,0.00032099,2]
[391735691,1760763032750,-500.0,0.00032099,2]
[391735692,1760763032760,-500.0,0.00032099,2]
[391735693,1760763032769,-500.0,0.00032099,2]
[391735694,1760763032778,-500.0,0.00032099,2]
[391735695,1760763032788,-500.0,0.00032099,2]
[391735696,1760763032797,-500.0,0.00032099,2]
[391735697,1760763032806,-500.0,0.00032099,2]
[391735698,1760763032816,-500.0,0.00032099,2]
[391735699,1760763032825,-500.0,0.00032099,2]
[391735700,1760763032834,-500.0,0.00032099,2]
[391735701,1760763032843,-500.0,0.00032099,2]
[391735702,1760763032852,-500.0,0.00032099,2]
[391735703,1760763032865,-500.0,0.00032099,2]
[391735704,1760763032875,-226.38804969,0.00032099,2]
[391735705,1760763032884,-500.0,0.00032099,2]
[391735706,1760763032894,-500.0,0.00032099,2]
[391735707,1760763032904,-500.0,0.00032099,2]
[391735708,1760763032914,-500.0,0.00032099,2]
[391735709,1760763032923,-500.0,0.00032099,2]
[391735710,1760763032932,-500.0,0.00032099,2]
[391735711,1760763032943,-528.58240848,0.00032099,17]
[391735712,1760763032952,-21115.07601241,0.000321,30]
[391735713,1760763032962,-1242722.0,0.000321,30]
[391735714,1760763032971,-202.28157104,0.00032115,2]
[391735715,1760763032980,-11719.4781964,0.00032116,2]
[391735716,1760763032990,-7623.46254048,0.00032116,2]
[391735717,1760763032999,-300.0,0.00032125,10]
[391735718,1760763033008,-300.0,0.00032125,10]
[391735719,1760763033017,-300.0,0.00032125,10]
[391735720,1760763033026,-1153.83,0.00032125,7]
[391735721,1760763033036,-1095.72,0.00032125,120]
[391735722,1760763033046,-152.132268,0.00032126,30]
[391735723,1760763033056,-151.0,0.00032126,30]
[391735724,1760763033065,-151.0,0.00032126,30]
[391735725,1760763033075,-151.0,0.00032126,30]
[391735726,1760763033084,-151.0,0.00032126,30]
[391735727,1760763033094,-151.0,0.00032126,30]
[391735728,1760763033103,-151.0,0.00032126,30]
[391735729,1760763033113,-151.0,0.00032126,30]
[391735730,1760763033123,-151.0,0.00032126,30]
[391735731,1760763033132,-151.0,0.00032126,30]
[391735732,1760763033142,-151.0,0.00032126,30]
[391735733,1760763033151,-151.0,0.00032126,30]
[391735734,1760763033160,-151.0,0.00032126,30]
[391735735,1760763033170,-151.0,0.00032126,30]
[391735736,1760763033179,-151.0,0.00032126,30]
[391735737,1760763033189,-151.0,0.00032126,30]
[391735738,1760763033199,-151.0,0.00032126,30]
[391735739,1760763033208,-151.0,0.00032126,30]
[391735740,1760763033218,-151.0,0.00032126,30]
[391735741,1760763033227,-151.0,0.00032126,30]
[391735742,1760763033237,-151.0,0.00032126,30]
[391735743,1760763033247,-151.0,0.00032126,30]
[391735744,1760763033257,-151.0,0.00032126,30]
[391735745,1760763033267,-164.218119,0.00032126,30]
[391735746,1760763033277,-164.218119,0.00032126,30]
[391735747,1760763033287,-261.92294,0.00032126,30]
[391735748,1760763033297,-164.218119,0.00032126,30]
[391735749,1760763033307,-164.218119,0.00032126,30]
[391735750,1760763033317,-151.0,0.00032126,30]
[391735751,1760763033327,-151.0,0.00032126,30]
[391735752,1760763033336,-151.0,0.00032126,30]
[391735753,1760763033346,-151.0,0.00032126,30]
[391735754,1760763033355,-289.3062,0.00032126,30]
[391735755,1760763033365,-151.0,0.00032126,30]
[391735756,1760763033375,-151.0,0.00032126,30]
[391735757,1760763033385,-151.0,0.00032126,30]
[391735758,1760763033395,-153.740189,0.00032126,30]
[391735759,1760763033404,-151.0,0.00032126,30]
[391735760,1760763033414,-151.0,0.00032126,30]
[391735761,1760763033423,-252.054496,0.00032126,30]
[391735762,1760763033433,-151.0,0.00032126,30]
[391735763,1760763033443,-151.0,0.00032126,30]
[391735764,1760763033453,-185.297903,0.00032126,30]
[391735765,1760763033463,-185.297903,0.00032126,30]
[391735766,1760763033472,-185.297903,0.00032126,30]
[391735767,1760763033482,-151.407724,0.00032126,30]
[391735768,1760763033491,-152.615496,0.00032126,30]
[391735769,1760763033501,-185.297903,0.00032126,30]
[391735770,1760763033511,-152.615496,0.00032126,30]
[391735771,1760763033520,-152.615496,0.00032126,30]
[391735772,1760763033529,-152.615496,0.00032126,30]
[391735773,1760763033539,-151.0,0.00032126,30]
[391735774,1760763033548,-151.0,0.00032126,30]
[391735775,1760763033558,-151.0,0.00032126,30]
[391735776,1760763033567,-256.090162,0.00032126,30]
[391735777,1760763033577,-151.0,0.00032126,30]
[391735778,1760763033587,-151.0,0.00032126,30]
[391735779,1760763033596,-151.0,0.00032126,30]
[391735780,1760763033605,-151.0,0.00032126,30]
[391735781,1760763033614,-500.0,0.00032148,2]
[391735782,1760763033624,-1500.0,0.00032148,5]
[391735783,1760763033633,-800.0,0.00032148,3]
[391735784,1760763033643,-1647.4754,0.00032148,30]
[391735785,1760763033652,-501.75908607,0.00032173,5]
[391735786,1760763033662,-506.61231004,0.00032173,5]
[391735787,1760763033672,-506.18334773,0.00032173,5]
[391735788,1760763033681,-342.34,0.000322,2]
[391735789,1760763033691,-386.71,0.000322,30]
[391735790,1760763033700,-152.0,0.000323,120]
[391735791,1760763033710,-300.0,0.00032301,2]
[391735792,1760763033719,-1153.83,0.00032399,7]
[391735793,1760763033728,-666.0,0.00032442,3]